[Event "KAZ-ch Women 2019"]
[Site "Almaty"]
[Date "2019.04.27"]
[Round "7.4"]
[White "Davletbayeva, Madina"]
[Black "Ankudinova, Yelena"]
[Result "1-0"]
[ECO "B19"]
[WhiteElo "2286"]
[BlackElo "2099"]
[Annotator "RC"]
[PlyCount "67"]
[EventDate "2019.04.21"]
[EventType "tourn"]
[EventCountry "KAZ"]
[SourceTitle "playchess.com"]
[Source "ChessBase"]
[SourceQuality "1"]
[TimeControl "40/5400+30:1800+30"]

1. e4 {[%emt 0:00:00]} c6 {[%emt 0:00:00]} 2. d4 {[%emt 0:00:00]} d5 {[%emt 0:00:04]} 3. Nd2 {[%emt 0:00:33]} dxe4 {[%emt 0:00:12]} 4. Nxe4 {[%emt 0:00:06]} Bf5 {[%emt 0:00:28]} 5. Ng3 {[%emt 0:03:24]} Bg6 {[%emt 0:00:11]} 6. h4 {[%emt 0:04:23]} h6 {[%emt 0:00:12]} 7. Nf3 {[%emt 0:00:08]} Nd7 {[%emt 0:00:15]} 8. h5 {[%emt 0:00:31]} Bh7 {[%emt 0:00:02]} 9. Bd3 {[%emt 0:00:08]} Bxd3 {[%emt 0:00:07]} 10. Qxd3 {[%emt 0:00:03]} e6 {[%emt 0:00:27]} 11. Bd2 {[%emt 0:01:25]} Ngf6 {[%emt 0:00:21]} 12. O-O-O {[%emt 0:00:42]} Be7 {[%emt 0:02:09]} 13. Kb1 {[%emt 0:00:30]} O-O {[%emt 0:00:35]} 14. Ne4 {[%emt 0:00:49]} Nxe4 {[%emt 0:08:20]} 15. Qxe4 {[%emt 0:00:05]} Nf6 {[%emt 0:00:09]} 16. Qe2 {[%emt 0:00:42]} Kh8 {[%emt 0:03:40]} 17. Ne5 {[%emt 0:03:43]} Qd5 {[%emt 0:20:09]} 18. f3 {[%emt 0:02:40]} b5 {[%emt 0:03:21]} 19. g4 {[%emt 0:02:53]} Bd6 {[%emt 0:06:22]} 20. g5 {[%emt 0:06:47]} hxg5 {[%emt 0:02:17]} 21. Bxg5 {[%emt 0:02:52]} Nh7 {[%emt 0:00:21]} 22. Bf4 {[%emt 0:06:31]} a5 {[%emt 0:02:58]} 23. Bc1 {[%emt 0:21:03]} Nf6 {[%emt 0:11:30]} 24. Rh4 {[%emt 0:02:55]} Kg8 {[%emt 0:08:44]} 25. Rg1 {[%emt 0:02:40]} Bxe5 {[%emt 0:08:17]} 26. dxe5 {[%emt 0:00:14]} Ne8 {[%emt 0:00:19]} 27. Rhg4 {[%emt 0:05:32]} Kh8 {[%emt 0:03:58]} 28. Bg5 {[%emt 0:02:05]} Ra7 {[%emt 0:01:44]} 29. Bf6 {[%emt 0:03:45]} gxf6 {[%emt 0:01:02]} 30. Qe3 {[%emt 0:00:17]} Kh7 {[%emt 0:01:01]} 31. exf6 {[%emt 0:00:27]} Qxh5 {[%emt 0:02:42]} 32. Qxa7 {[%emt 0:01:05]} Nxf6 {[%emt 0:00:28]} 33. Rg7+ {[%emt 0:00:26]} Kh8 {[%emt 0:00:26]} 34. Qe7 {[%emt 0:00:22]} 1-0

[Event "KAZ-ch Women 2019"]
[Site "Almaty"]
[Date "2019.04.27"]
[Round "7.5"]
[White "Dauletova, Gulmira"]
[Black "Nasybullina, Alfia"]
[Result "0-1"]
[ECO "B07"]
[WhiteElo "2262"]
[BlackElo "2065"]
[Annotator "NA"]
[PlyCount "162"]
[EventDate "2019.04.21"]
[EventType "tourn"]
[EventCountry "KAZ"]
[SourceTitle "playchess.com"]
[Source "ChessBase"]
[SourceQuality "1"]
[TimeControl "40/5400+30:1800+30"]

{[%evp 8,152,34,29,32767,32767,32767,32767,62,69,75,80,100,32767,79,47,52,65,32767,32767,54,32767,29,-43,32767,-88,0,-35,0,-84,-102,-85,-53,-75,32767,32767,-114,32767,-277,32767,-60,-554,-140,-506,32767,32767,-470,32767,32767,32767,32767,32767,32767,32767,32767,32767,32767,32767,32767,32767,32767,32767,-913,32767,32767,32767,32767,32767,32767,32767,32767,32767,32767,32767,32767,32767,32767,32767,-1530,-1199,32767,32767,-2002,-4894,-528,-2179,-534,-496,32767,-604,-698,-568,-42,32767,32767,-76,0,-359,-7,-8,0,0,32767,32767,0,0,0,-9,0,-184,32767,32767,32767,32767,32767,32767,32767,-525,-773,-519,32767,32767,-12843,32767,-29939,-5093,-5072,-1954,-2322,-1232,32767,-1080,-1692,32767,32767,-6103,-29980,-6078,-12482,32767,32767,32767,32767,-29981,32767,32767,-29985]} 1. e4 {[%emt 0:00:00]} d6 {[%emt 0:02:01]} 2. d4 {[%emt 0:00:00]} Nf6 {[%emt 0:00:10]} 3. Nc3 {[%emt 0:00:00]} e5 {[%emt 0:00:42]} 4. Nf3 {[%emt 0:00:19]} exd4 {[%emt 0:00:24]} 5. Nxd4 {[%emt 0:00:05]} g6 {[%emt 0:00:29]} 6. Be3 {[%emt 0:00:29]} Bg7 {[%emt 0:00:10]} 7. Qd2 {[%emt 0:00:16]} Nc6 {[%emt 0:01:33]} 8. f3 {[%emt 0:09:14]} O-O {[%emt 0:01:15]} 9. O-O-O {[%emt 0:00:22]} Re8 {[%emt 0:02:19]} 10. h4 {[%emt 0:04:57]} d5 {[%emt 0:11:25] C41: Philidor Defence} (10... a6 11. Nxc6 bxc6 12. Bh6 Bh8 13. Bg5 Qe7 14. h5 Qe5 15. hxg6 fxg6 16. f4 Qc5 17. e5 dxe5 18. Bxf6 Bxf6 {1-0 (29) Degraeve,J (2540)-Reinderman,D (2520) Germany 2003}) 11. Nxc6 {[%emt 0:26:06]} (11. h5 $5) 11... bxc6 {[%emt 0:00:09]} 12. Bh6 {[%emt 0:00:04]} Bh8 {[%emt 0:03:00]} 13. exd5 $146 {[%emt 0:10:44]} ({Predecessor:} 13. h5 Be6 14. hxg6 fxg6 15. e5 Nh5 16. f4 Ng3 17. Rh2 d4 18. Qf2 Nxf1 19. Qxf1 {0-1 (30) Lotero,F (2168)-Castro Rojas,O (2367) Medellin 2014}) 13... Nxd5 {[%emt 0:01:17]} 14. Nxd5 {[%emt 0:01:59]} cxd5 {[%emt 0:00:06]} 15. Bb5 {[%emt 0:05:47]} (15. Qxd5 $14 Rb8 16. c3 (16. Qxd8 Bxb2+ 17. Kb1 Bd4+ 18. Kc1 Bb2+ 19. Kb1 Bf6+ 20. Kc1 Bb2+ $15) 16... Qxd5 17. Rxd5) 15... c6 {[%emt 0:06:30]} 16. Ba4 {[%emt 0:00:27] [#]} ({Not} 16. Bxc6 $2 {[#]} Qb6 $3 $19 {[%mdl 576] Double Attack}) (16. Bd3 $1 $11 {keeps the balance.}) 16... Rb8 {[%emt 0:03:39]} ({Black should play} 16... Qb6 $1 $17 {[%csl Gh8][%cal Rb6b2]} 17. c3 Be6) 17. Bb3 $1 {[%emt 0:04:23]} a5 {[%emt 0:04:51]} 18. Rde1 {[%emt 0:01:11]} (18. Bf4 $11 {remains equal.} Rb7 19. Bg5) 18... Be6 {[%emt 0:02:56]} 19. c3 {[%emt 0:07:00] [#]} a4 $1 {[%emt 0:02:11]} 20. Bxa4 {[%emt 0:01:04]} Qa5 {[%emt 0:06:30]} 21. Qc2 {[%emt 0:00:02] [#]} d4 $1 {[%emt 0:02:40]} 22. b4 {[%emt 0:08:42]} Qa6 {[%emt 0:02:18]} 23. Bb3 {[%emt 0:04:44]} Bf5 $2 {[%emt 0:06:48]} (23... dxc3 $19 24. Rxe6 Rxe6 25. Bxe6 fxe6) 24. Re4 $2 {[%emt 0:00:20]} (24. Qf2 $17) 24... d3 $2 {[%emt 0:05:27]} (24... Bxe4 $19 25. fxe4 dxc3) 25. Qd2 $2 {[%emt 0:03:04]} (25. Rxe8+ $17 {was the crucial defense.} Rxe8 26. Qb2) 25... Bxe4 {[%emt 0:12:25]} 26. fxe4 {[%emt 0:00:00]} c5 {[%emt 0:01:36]} 27. e5 {[%emt 0:11:06]} c4 {[%emt 0:00:23]} 28. Bd1 {[%emt 0:00:41]} Bxe5 {[%emt 0:01:12]} 29. Qb2 {[%emt 0:00:47]} Qf6 {[%emt 0:00:40]} 30. Bd2 {[%emt 0:00:19]} Bf4 {[%emt 0:00:20]} 31. Bf3 {[%emt 0:00:42]} Bxd2+ {[%emt 0:00:08]} 32. Kxd2 {[%emt 0:00:05]} Qf4+ {[%emt 0:01:51]} 33. Kd1 {[%emt 0:00:02]} Qe3 {[%emt 0:01:48]} 34. Qd2 {[%emt 0:00:24]} Qa7 {[%emt 0:00:55]} 35. Qb2 {[%emt 0:01:29]} d2 {[%emt 0:00:55]} 36. Rf1 {[%emt 0:00:29]} Re1+ {[%emt 0:00:20]} 37. Rxe1 {[%emt 0:00:22]} dxe1=Q+ {[%emt 0:00:08]} 38. Kxe1 Qg1+ {[%emt 0:00:11]} 39. Kd2 {[%emt 0:00:13]} Rd8+ {[%emt 0:00:23]} 40. Kc2 {[%emt 0:00:00]} Qf2+ {[%emt 0:00:00]} 41. Kb1 {[%emt 0:00:07]} Rd2 {[%emt 0:03:31]} 42. Qa3 {[%emt 0:05:23]} Qf1+ {[%emt 0:00:33]} 43. Qc1 {[%emt 0:00:05]} Qd3+ {[%emt 0:00:05]} 44. Ka1 {[%emt 0:00:17]} h5 {[%emt 0:03:01]} 45. Be4 {[%emt 0:06:16]} Qe2 {[%emt 0:00:18]} (45... Qe3 $142 46. Bc2 Qxc3+ {[%mdl 64] Double Attack} 47. Kb1 Re2) 46. Bb1 {[%emt 0:00:18]} Qxg2 {[%emt 0:00:24]} (46... Qe3 $142 47. Qa3 Qe5) 47. b5 {[%emt 0:02:48]} Re2 {[%emt 0:05:29]} 48. a4 $2 {[%emt 0:03:47]} (48. Qd1) 48... Qd5 {[%emt 0:00:59]} 49. Qa3 {[%emt 0:01:54]} Re3 $2 {[%emt 0:00:47]} (49... g5 $19 50. hxg5 h4) 50. b6 {[%emt 0:05:54]} Re8 {[%emt 0:13:50]} 51. Qb4 {[%emt 0:01:09]} Kg7 {[%emt 0:01:48]} 52. Bc2 $2 {[%emt 0:03:36] [#]} (52. Kb2 $1 $11 {and White stays safe.}) 52... g5 $2 {[%emt 0:01:37]} ({Black should try} 52... f5 $1 $19 {[%cal Rf5f4]} 53. Qb1 Qd2) 53. hxg5 {[%emt 0:01:49]} h4 {[%emt 0:00:13]} 54. b7 {[%emt 0:00:18]} Rb8 {[%emt 0:01:22]} 55. Qb6 {[%emt 0:00:15]} Qxg5 {[%emt 0:04:20]} (55... Kg8 $5 56. Qh6 $8 f5 57. Qg6+ Kf8 $11) 56. Qd4+ {[%emt 0:02:04]} Kg8 {[%emt 0:00:51]} 57. Be4 {[%emt 0:00:30]} Rd8 {[%emt 0:03:01]} 58. Qxc4 $2 {[%emt 0:00:32]} (58. Bd5 $1 $11 {and White is okay.}) 58... Qc1+ {[%emt 0:00:08]} 59. Bb1 {[%emt 0:00:05]} Qa3+ {[%emt 0:00:19]} 60. Qa2 {[%emt 0:00:04]} Qxc3+ {[%emt 0:00:28]} 61. Qb2 {[%emt 0:00:01]} Qg3 {[%emt 0:08:15]} 62. a5 $2 {[%emt 0:02:25]} (62. Be4 $17 h3 63. Ka2) 62... h3 {[%emt 0:00:06]} 63. a6 {[%emt 0:00:49]} Qd6 {[%emt 0:00:22]} 64. Bd3 {[%emt 0:02:50]} Qxd3 {[%emt 0:00:52]} 65. b8=Q {[%emt 0:00:10]} Qxa6+ {[%emt 0:00:18]} 66. Kb1 {[%emt 0:00:04]} Qg6+ {[%emt 0:00:17]} 67. Ka2 {[%emt 0:00:33]} Rxb8 {[%emt 0:00:20]} 68. Qxb8+ {[%emt 0:00:03]} Kh7 {[%emt 0:00:09]} 69. Qf4 {[%emt 0:01:09]} Kg7 {[%emt 0:02:04]} 70. Qd4+ {[%emt 0:00:30]} f6 {[%emt 0:00:08]} 71. Ka3 {[%emt 0:00:52]} Qg3+ {[%emt 0:00:12]} 72. Ka4 {[%emt 0:00:39]} h2 {[%emt 0:00:36]} 73. Qd7+ {[%emt 0:00:30]} Kh6 {[%emt 0:00:25]} 74. Qd2+ {[%emt 0:00:19]} Kh5 {[%emt 0:00:16]} 75. Qd5+ {[%emt 0:00:15]} Kh4 {[%emt 0:00:18]} 76. Qb7 {[%emt 0:00:54]} Qf4+ {[%emt 0:00:14]} 77. Kb3 {[%emt 0:00:24]} Kg3 {[%emt 0:00:08]} 78. Qg7+ {[%emt 0:00:33]} Kf2 {[%emt 0:00:06]} 79. Qh7 {[%emt 0:00:45]} Qf3+ {[%emt 0:00:27]} 80. Kb2 {[%emt 0:00:24]} h1=Q {[%emt 0:00:11]} 81. Qa7+ {[%emt 0:00:36]} Kf1 {[%emt 0:00:41]} 0-1

[Event "KAZ-ch Women 2019"]
[Site "Almaty"]
[Date "2019.04.28"]
[Round "8.1"]
[White "Kamalidenova, Meruert"]
[Black "Nasybullina, Alfia"]
[Result "1/2-1/2"]
[ECO "D02"]
[WhiteElo "2051"]
[BlackElo "2065"]
[Annotator "NA"]
[PlyCount "68"]
[EventDate "2019.04.21"]
[EventType "tourn"]
[EventCountry "KAZ"]
[SourceTitle "playchess.com"]
[Source "ChessBase"]
[SourceQuality "1"]
[TimeControl "40/5400+30:1800+30"]

1. d4 {[%emt 0:00:00]} d5 {[%emt 0:04:05]} 2. Nf3 {[%emt 0:00:02]} Nf6 {[%emt 0:00:22]} 3. g3 {[%emt 0:00:35]} c5 {[%emt 0:00:18]} 4. c4 {[%emt 0:01:26]} cxd4 {[%emt 0:00:23]} 5. Bg2 {[%emt 0:00:50]} Nc6 {[%emt 0:00:34]} 6. Nxd4 {[%emt 0:00:49]} e6 {[%emt 0:04:52]} 7. cxd5 {[%emt 0:02:43]} exd5 {[%emt 0:05:47]} 8. O-O {[%emt 0:02:10]} Bc5 {[%emt 0:00:40]} 9. Nb3 {[%emt 0:01:24]} Be7 {[%emt 0:01:42]} 10. Nc3 {[%emt 0:01:24]} Be6 {[%emt 0:00:06]} 11. Bg5 {[%emt 0:01:26]} O-O {[%emt 0:01:06]} 12. Rc1 {[%emt 0:05:31]} h6 {[%emt 0:04:20]} 13. Bxf6 {[%emt 0:04:35]} Bxf6 {[%emt 0:00:10]} 14. Nc5 {[%emt 0:00:21]} Bd4 {[%emt 0:25:22]} 15. N3a4 {[%emt 0:08:02]} Qe7 {[%emt 0:09:17]} 16. Qb3 {[%emt 0:07:46]} Rab8 {[%emt 0:06:41]} 17. e3 {[%emt 0:09:28]} Bf6 {[%emt 0:01:59]} 18. Nxe6 {[%emt 0:05:34]} fxe6 {[%emt 0:00:23]} 19. Nc5 {[%emt 0:00:09]} Kh8 {[%emt 0:00:54]} 20. Bh3 {[%emt 0:01:25]} Nd8 {[%emt 0:02:52]} 21. Nd3 {[%emt 0:03:15]} g5 {[%emt 0:00:55]} 22. e4 {[%emt 0:02:45]} dxe4 {[%emt 0:00:45]} 23. Nc5 {[%emt 0:00:17]} Bd4 {[%emt 0:05:52]} 24. Nxe4 {[%emt 0:02:07]} e5 {[%emt 0:03:37]} 25. Qd1 {[%emt 0:04:11]} Nc6 {[%emt 0:01:34]} 26. Qh5 {[%emt 0:01:32]} Kg7 {[%emt 0:00:25]} 27. Rcd1 {[%emt 0:01:58]} Qf7 {[%emt 0:01:00]} 28. Qg4 {[%emt 0:04:50]} Qf3 {[%emt 0:01:54]} 29. Qxf3 {[%emt 0:01:10]} Rxf3 {[%emt 0:00:05]} 30. Bg2 {[%emt 0:01:44]} Rf7 {[%emt 0:01:18]} 31. Rd2 {[%emt 0:01:30]} Rd8 {[%emt 0:01:05]} 32. g4 {[%emt 0:02:15]} Rc7 {[%emt 0:02:19]} 33. Rc1 {[%emt 0:01:02]} Bb6 {[%emt 0:06:18]} 34. Nd6 {[%emt 0:03:03]} Nd4 {[%emt 0:02:02]} 1/2-1/2

[Event "KAZ-ch Women 2019"]
[Site "Almaty"]
[Date "2019.04.28"]
[Round "8.2"]
[White "Ankudinova, Yelena"]
[Black "Dauletova, Gulmira"]
[Result "0-1"]
[ECO "A28"]
[WhiteElo "2099"]
[BlackElo "2262"]
[Annotator "NA"]
[PlyCount "56"]
[EventDate "2019.04.21"]
[EventType "tourn"]
[EventCountry "KAZ"]
[SourceTitle "playchess.com"]
[Source "ChessBase"]
[SourceQuality "1"]
[TimeControl "40/5400+30:1800+30"]

1. c4 {[%emt 0:00:00]} e5 {[%emt 0:00:00]} 2. Nc3 {[%emt 0:00:00]} Nf6 {[%emt 0:00:00]} 3. Nf3 {[%emt 0:00:02]} Nc6 {[%emt 0:00:19]} 4. e3 {[%emt 0:00:12]} Bb4 {[%emt 0:05:29]} 5. Qc2 {[%emt 0:00:54]} d6 {[%emt 0:05:30]} 6. Be2 {[%emt 0:03:16]} O-O {[%emt 0:11:18]} 7. a3 {[%emt 0:04:10]} Bxc3 {[%emt 0:04:53]} 8. Qxc3 {[%emt 0:01:10]} a5 {[%emt 0:00:06]} 9. b3 {[%emt 0:00:44]} Bf5 {[%emt 0:06:54]} 10. Bb2 {[%emt 0:03:24]} Ne4 {[%emt 0:09:22]} 11. Qc1 {[%emt 0:00:19]} Nc5 {[%emt 0:00:12]} 12. Qc3 {[%emt 0:00:32]} Ra6 {[%emt 0:03:24]} 13. d3 {[%emt 0:03:12]} Rb6 {[%emt 0:02:32]} 14. Nd2 {[%emt 0:00:53]} Qg5 {[%emt 0:04:17]} 15. g4 {[%emt 0:01:17]} Bxg4 {[%emt 0:08:08]} 16. Rg1 {[%emt 0:02:44]} f5 {[%emt 0:00:08]} 17. h3 {[%emt 0:02:00]} Qh4 {[%emt 0:00:03]} 18. hxg4 {[%emt 0:02:14]} fxg4 {[%emt 0:00:24]} 19. Rg2 {[%emt 0:05:52]} h5 {[%emt 0:03:49]} 20. d4 {[%emt 0:06:39]} Qh1+ {[%emt 0:01:27]} 21. Bf1 {[%emt 0:00:21]} exd4 {[%emt 0:02:26]} 22. exd4 {[%emt 0:09:06]} Re8+ {[%emt 0:00:01]} 23. Kd1 {[%emt 0:00:18]} Rxb3 {[%emt 0:08:57]} 24. Qc2 {[%emt 0:02:18]} Rd3 {[%emt 0:03:40]} 25. Qxd3 {[%emt 0:08:27]} Nxd3 {[%emt 0:00:22]} 26. Bc3 {[%emt 0:00:08]} Re1+ {[%emt 0:00:39]} 27. Kc2 {[%emt 0:00:03]} Rxa1 {[%emt 0:00:10]} 28. Bxa1 {[%emt 0:00:12]} Ne1+ {[%emt 0:00:04]} 0-1

[Event "KAZ-ch Women 2019"]
[Site "Almaty"]
[Date "2019.04.28"]
[Round "8.4"]
[White "Sultanbek, Zeinep"]
[Black "Kairbekova, Amina"]
[Result "1-0"]
[ECO "E04"]
[WhiteElo "1891"]
[BlackElo "1954"]
[Annotator "NA"]
[PlyCount "87"]
[EventDate "2019.04.21"]
[EventType "tourn"]
[EventCountry "KAZ"]
[SourceTitle "playchess.com"]
[Source "ChessBase"]
[SourceQuality "1"]
[TimeControl "40/5400+30:1800+30"]

1. d4 {[%emt 0:00:00]} Nf6 {[%emt 0:00:00]} 2. Nf3 {[%emt 0:00:00]} d5 {[%emt 0:00:00]} 3. c4 {[%emt 0:00:40]} e6 {[%emt 0:00:00]} 4. g3 {[%emt 0:00:19]} dxc4 {[%emt 0:00:00]} 5. Bg2 {[%emt 0:01:01]} Bd7 {[%emt 0:00:04]} 6. Ne5 {[%emt 0:00:32]} Bc6 {[%emt 0:00:06]} 7. Nxc6 {[%emt 0:00:04]} Nxc6 {[%emt 0:00:06]} 8. Qa4 {[%emt 0:02:56]} Qd7 {[%emt 0:01:39]} 9. O-O {[%emt 0:00:47]} Nb4 {[%emt 0:00:20]} 10. Qxd7+ {[%emt 0:00:29]} Kxd7 {[%emt 0:02:36]} 11. Na3 {[%emt 0:01:29]} Nfd5 {[%emt 0:04:42]} 12. Rd1 {[%emt 0:02:43]} c3 {[%emt 0:02:30]} 13. e4 {[%emt 0:02:11]} cxb2 {[%emt 0:01:14]} 14. Bxb2 {[%emt 0:00:06]} Nb6 {[%emt 0:00:45]} 15. d5 {[%emt 0:00:12]} exd5 {[%emt 0:05:16]} 16. exd5 {[%emt 0:00:38]} Re8 {[%emt 0:02:38]} 17. Bh3+ {[%emt 0:01:04]} Kd8 {[%emt 0:00:37]} 18. d6 {[%emt 0:00:10]} cxd6 {[%emt 0:03:26]} 19. Nb5 {[%emt 0:00:09]} a6 {[%emt 0:01:51]} 20. Bxg7 {[%emt 0:24:29]} Bxg7 {[%emt 0:04:02]} 21. Rxd6+ {[%emt 0:00:06]} Ke7 {[%emt 0:00:05]} 22. Re1+ {[%emt 0:00:04]} Kf8 {[%emt 0:00:02]} 23. Rxe8+ {[%emt 0:00:07]} Kxe8 {[%emt 0:00:01]} 24. Nc7+ {[%emt 0:00:06]} Ke7 {[%emt 0:00:02]} 25. Rxb6 {[%emt 0:00:08]} Nxa2 {[%emt 0:00:04]} 26. Rxb7 {[%emt 0:03:37]} Be5 {[%emt 0:07:33]} 27. Nxa6+ {[%emt 0:00:12]} Kf6 {[%emt 0:00:05]} 28. Nc5 {[%emt 0:00:39]} Bd4 {[%emt 0:04:03]} 29. Ne4+ {[%emt 0:00:14]} Kg6 {[%emt 0:00:04]} 30. Nd6 {[%emt 0:00:09]} Rf8 {[%emt 0:03:30]} 31. Bf5+ {[%emt 0:00:42]} Kf6 {[%emt 0:01:55]} 32. Bxh7 {[%emt 0:01:15]} Nc3 {[%emt 0:00:12]} 33. Bd3 {[%emt 0:01:32]} Bc5 {[%emt 0:09:54]} 34. Nb5 {[%emt 0:04:23]} Nd1 {[%emt 0:02:28]} 35. Rc7 {[%emt 0:00:39]} Nxf2 {[%emt 0:02:37]} 36. Bc4 {[%emt 0:01:08]} Ne4+ {[%emt 0:03:15]} 37. Kg2 {[%emt 0:00:13]} Be7 {[%emt 0:04:54]} 38. Nd4 {[%emt 0:03:50]} Rb8 {[%emt 0:12:18]} 39. Rc6+ {[%emt 0:03:43]} Ke5 {[%emt 0:01:01]} 40. Nf3+ {[%emt 0:00:00]} Kf5 {[%emt 0:00:00]} 41. Bd3 {[%emt 0:01:43]} Rb2+ {[%emt 0:06:09]} 42. Rc2 {[%emt 0:00:10]} Rxc2+ {[%emt 0:02:57]} 43. Bxc2 {[%emt 0:00:05]} Bb4 {[%emt 0:00:19]} 44. Nd4+ {[%emt 0:00:24]} 1-0

[Event "KAZ-ch Women 2019"]
[Site "Almaty"]
[Date "2019.04.28"]
[Round "8.5"]
[White "Serikbay, Assel"]
[Black "Shauken, Aruzhan"]
[Result "1-0"]
[ECO "E63"]
[WhiteElo "2155"]
[BlackElo "1685"]
[Annotator "NA"]
[PlyCount "81"]
[EventDate "2019.04.21"]
[EventType "tourn"]
[EventCountry "KAZ"]
[SourceTitle "playchess.com"]
[Source "ChessBase"]
[SourceQuality "1"]
[TimeControl "40/5400+30:1800+30"]

1. d4 {[%emt 0:00:00]} Nf6 {[%emt 0:00:00]} 2. c4 {[%emt 0:00:00]} g6 {[%emt 0:00:00]} 3. g3 {[%emt 0:00:00]} Bg7 {[%emt 0:00:00]} 4. Bg2 {[%emt 0:00:00]} d6 {[%emt 0:00:00]} 5. Nf3 {[%emt 0:00:00]} O-O {[%emt 0:00:05]} 6. O-O {[%emt 0:00:00]} Nc6 {[%emt 0:00:06]} 7. Nc3 {[%emt 0:00:04]} a6 {[%emt 0:00:05]} 8. Qd3 {[%emt 0:00:10]} Bf5 {[%emt 0:00:29]} 9. e4 {[%emt 0:00:21]} Bg4 {[%emt 0:00:25]} 10. Be3 {[%emt 0:03:35]} Nd7 {[%emt 0:03:25]} 11. h3 {[%emt 0:06:09]} Bxf3 {[%emt 0:00:25]} 12. Bxf3 {[%emt 0:00:03]} e5 {[%emt 0:00:32]} 13. d5 {[%emt 0:00:06]} Nd4 {[%emt 0:01:53]} 14. Bg2 {[%emt 0:00:21]} f5 {[%emt 0:02:31]} 15. exf5 {[%emt 0:23:59]} Nxf5 {[%emt 0:00:37]} 16. Ne4 {[%emt 0:01:05]} Nxe3 {[%emt 0:05:19]} 17. Qxe3 {[%emt 0:00:17]} Nf6 {[%emt 0:01:00]} 18. Nc3 {[%emt 0:07:23]} Qd7 {[%emt 0:03:43]} 19. b4 {[%emt 0:03:38]} Rfe8 {[%emt 0:16:47]} 20. g4 {[%emt 0:07:46]} Kh8 {[%emt 0:07:59]} 21. c5 {[%emt 0:03:47]} Qf7 {[%emt 0:09:24]} 22. Rad1 {[%emt 0:04:11]} Bf8 {[%emt 0:04:57]} 23. f4 {[%emt 0:04:19]} Qg7 {[%emt 0:05:46]} 24. fxe5 {[%emt 0:13:16]} Rxe5 {[%emt 0:01:13]} 25. Qf3 {[%emt 0:00:07]} Nd7 {[%emt 0:00:58]} 26. c6 {[%emt 0:01:13]} bxc6 {[%emt 0:00:31]} 27. dxc6 {[%emt 0:00:01]} Nb6 {[%emt 0:00:17]} 28. a4 {[%emt 0:03:47]} Rae8 {[%emt 0:01:06]} 29. Rd3 {[%emt 0:01:58]} Nc4 {[%emt 0:07:58]} 30. Nd5 {[%emt 0:01:44]} Re1 {[%emt 0:01:26]} 31. Qf6 {[%emt 0:01:33]} Qxf6 {[%emt 0:01:45]} 32. Nxf6 {[%emt 0:00:04]} Rxf1+ {[%emt 0:01:32]} 33. Bxf1 {[%emt 0:01:57]} Re1 {[%emt 0:04:28]} 34. Nd5 {[%emt 0:03:22]} Bh6 {[%emt 0:00:50]} 35. Kf2 {[%emt 0:01:22]} Rc1 {[%emt 0:00:41]} 36. Rc3 {[%emt 0:04:33]} Ne5 {[%emt 0:01:15]} 37. Rxc1 {[%emt 0:00:25]} Bxc1 {[%emt 0:00:05]} 38. b5 {[%emt 0:00:26]} axb5 {[%emt 0:00:53]} 39. axb5 {[%emt 0:00:23]} Kg7 {[%emt 0:01:34]} 40. Nxc7 {[%emt 0:00:00]} Kf7 {[%emt 0:00:00]} 41. Nd5 1-0